bitfinex-derivatives/quotes_BTCF0:USTF0_20250722
["timestamp","ask_amount","ask_price","bid_price","bid_amount"]
[1753212342433,0.3265987,119500.0,119490.0,0.08021624]
[1753212342732,0.67953327,119500.0,119490.0,0.16389474]
[1753212342930,0.67953327,119500.0,119490.0,0.10397406]
[1753212343118,0.67953327,119500.0,119490.0,0.08209086]
[1753212343323,0.67953327,119500.0,119490.0,0.05995506]
[1753212343523,0.68840506,119500.0,119490.0,0.03849276]
[1753212343932,0.67953327,119500.0,119490.0,0.03849276]
[1753212344131,0.67953327,119500.0,119490.0,0.10537595]
[1753212344326,0.68153327,119500.0,119490.0,0.10537595]
[1753212344633,0.68253327,119500.0,119490.0,0.10537595]
[1753212345233,1.09957327,119500.0,119490.0,0.31031595]
[1753212345420,1.09957327,119500.0,119490.0,0.40180663]
[1753212345623,0.2490687,119500.0,119490.0,0.77364052]
[1753212345828,0.5871187,119500.0,119490.0,0.8335612]
[1753212346137,0.5871187,119500.0,119490.0,0.77364052]
[1753212346430,0.5871187,119500.0,119490.0,0.8335612]
[1753212346630,0.5871187,119500.0,119490.0,0.48062663]
[1753212348225,1.16004601,119500.0,119490.0,0.42070595]
[1753212348434,1.16004601,119500.0,119490.0,0.48062663]
[1753212348638,1.16004601,119500.0,119490.0,0.42070595]
[1753212349228,0.5871187,119500.0,119490.0,0.42070595]
[1753212349623,1.07951601,119500.0,119490.0,0.42070595]
[1753212349837,1.07951601,119500.0,119490.0,0.4331122]
[1753212349838,1.16004601,119500.0,119490.0,0.4331122]
[1753212350023,1.16004601,119500.0,119490.0,0.31031595]
[1753212350830,1.16004601,119500.0,119490.0,0.13247895]
[1753212351139,1.17686231,119500.0,119490.0,0.12561405]
[1753212351435,0.2591541,119490.0,119470.0,0.22339624]
[1753212351635,1.91243401,119480.0,119470.0,0.22339624]
[1753212351941,1.91243401,119480.0,119470.0,0.31933174]
[1753212352137,1.91243401,119480.0,119470.0,0.25941106]
[1753212352338,1.91243401,119480.0,119470.0,0.29098106]
[1753212352836,1.91243401,119480.0,119470.0,0.43691458]
[1753212353434,1.91743401,119480.0,119470.0,0.43691458]
[1753212353634,1.91743401,119480.0,119470.0,0.48642458]
[1753212354134,1.91743401,119480.0,119470.0,0.49527246]
[1753212357136,1.5038267,119480.0,119470.0,0.49527246]
[1753212357337,1.91743401,119480.0,119470.0,0.49527246]
[1753212358336,1.3982667,119480.0,119470.0,0.49527246]
[1753212358540,0.9822267,119480.0,119470.0,0.92141612]
[1753212358838,0.9822267,119480.0,119470.0,0.96882187]
[1753212359040,1.3991067,119480.0,119470.0,0.96882187]
[1753212359243,1.3991067,119480.0,119470.0,0.55521456]
[1753212359443,1.3991067,119480.0,119470.0,0.96882187]
[1753212359737,1.3991067,119480.0,119470.0,0.98135787]
[1753212360339,1.3991067,119480.0,119470.0,0.56775056]
[1753212360535,1.3991067,119480.0,119470.0,0.55521456]
[1753212361339,1.3991467,119480.0,119470.0,0.55521456]
[1753212363747,1.5044267,119480.0,119470.0,0.55521456]
[1753212364043,1.5044267,119480.0,119470.0,0.50781873]
[1753212364245,1.3991467,119480.0,119470.0,0.49527246]
[1753212364449,1.3991467,119480.0,119470.0,0.50781917]
[1753212365041,1.3991467,119480.0,119470.0,0.50781943]
[1753212365546,1.91803401,119480.0,119470.0,0.50781943]
[1753212365734,1.5044267,119480.0,119470.0,0.50781943]
[1753212366140,1.4796767,119480.0,119470.0,0.50781943]
[1753212366546,1.3991467,119480.0,119470.0,0.50781943]
[1753212368145,1.4796767,119480.0,119470.0,0.50781943]
[1753212368447,1.5044267,119480.0,119470.0,0.50781943]
[1753212368946,1.91803401,119480.0,119470.0,0.49527246]
[1753212369142,1.85756294,119480.0,119470.0,0.49527246]
[1753212370138,1.5044267,119480.0,119470.0,0.37263246]
[1753212370341,1.5044267,119480.0,119470.0,0.43257456]
[1753212370342,1.85756294,119480.0,119470.0,0.43257456]
[1753212371241,1.85756294,119480.0,119470.0,0.44435456]
[1753212371637,2.23394918,119480.0,119470.0,0.04498492]
[1753212371847,2.23401003,119480.0,119470.0,0.09796093]
[1753212372049,1.88087379,119480.0,119470.0,0.09796093]
[1753212372243,2.23401003,119480.0,119470.0,0.07095483]
[1753212372448,0.2812151,119460.0,119450.0,0.06000346]
[1753212372638,1.20329134,119460.0,119450.0,0.0126234]
[1753212372837,1.20329134,119460.0,119450.0,1e-07]
[1753212373041,1.20329134,119460.0,119450.0,1e-08]
[1753212373550,0.11388,119430.0,119420.0,0.17847528]
[1753212373842,2.01345324,119430.0,119420.0,0.10354766]
[1753212374142,2.01355071,119430.0,119420.0,0.10400909]
[1753212374947,1.66041447,119430.0,119420.0,0.11283047]
[1753212375149,2.0746452,119430.0,119420.0,0.11283047]
[1753212375648,2.0746452,119430.0,119420.0,0.10400909]
[1753212375848,1.6580052,119430.0,119420.0,0.10400909]
[1753212376044,1.6600052,119430.0,119420.0,0.36965567]
[1753212376245,1.24577447,119430.0,119420.0,0.48133567]
[1753212376446,1.50991447,119430.0,119420.0,0.48133567]
[1753212376846,1.51091447,119430.0,119420.0,0.48133567]
[1753212377042,1.51091447,119430.0,119420.0,0.49033719]
[1753212377243,0.81313747,119430.0,119420.0,1.53493102]
[1753212377450,1.37195457,119430.0,119420.0,1.61753992]
[1753212377947,1.37195457,119430.0,119420.0,1.67748202]
[1753212378147,1.37195457,119430.0,119420.0,1.42748202]
[1753212379351,1.20457747,119430.0,119420.0,1.59487312]
[1753212379543,1.37195457,119430.0,119420.0,1.01325129]
[1753212379851,1.20461747,119430.0,119420.0,1.42748202]
[1753212380052,0.95551457,119430.0,119420.0,1.42748202]
[1753212380246,1.37199457,119430.0,119420.0,1.42748202]
[1753212380447,0.78813747,119430.0,119420.0,1.59487312]
[1753212380753,0.95551457,119430.0,119420.0,1.42748202]
[1753212380954,1.37203457,119430.0,119420.0,1.42748202]
[1753212381155,1.20465747,119430.0,119420.0,1.42748202]
[1753212381356,1.37203457,119430.0,119420.0,1.42748202]
[1753212381558,1.20465747,119430.0,119420.0,1.59487312]
[1753212381958,1.20461747,119430.0,119420.0,1.59487312]
[1753212382254,1.20441747,119430.0,119420.0,1.59487312]
[1753212382648,0.0002,119440.0,119430.0,0.4769071]
[1753212382857,0.41616,119440.0,119430.0,0.72376073]
[1753212383052,0.41616,119440.0,119430.0,1.05859383]
[1753212383356,0.41616,119440.0,119430.0,1.03489339]
[1753212383554,0.41625536,119440.0,119430.0,1.20227049]
[1753212383751,0.41625536,119440.0,119430.0,1.03489339]
[1753212383957,0.42317536,119440.0,119430.0,1.43782839]
[1753212384151,0.43217536,119440.0,119430.0,1.43782839]
[1753212384346,0.016,119440.0,119430.0,1.68782839]
[1753212384546,0.1675491,119450.0,119440.0,0.4768931]
[1753212384752,0.5832691,119450.0,119440.0,0.78355248]
[1753212384960,0.5832691,119450.0,119440.0,0.95099248]
[1753212385259,0.5832691,119450.0,119440.0,1.03472003]
[1753212385456,0.58334542,119450.0,119440.0,1.03472003]
[1753212385756,0.58334542,119450.0,119440.0,0.86728003]
[1753212386057,0.58434542,119450.0,119440.0,0.87228003]
[1753212387256,0.00107632,119450.0,119440.0,1.21962381]
[1753212387457,0.41783632,119450.0,119440.0,1.16283388]
[1753212387757,0.58518542,119450.0,119440.0,1.16283388]
[1753212387958,0.16942542,119450.0,119440.0,1.16283388]
[1753212388158,0.58498542,119450.0,119440.0,1.16283388]
[1753212388452,0.16942542,119450.0,119440.0,1.51812143]
[1753212388657,0.58494542,119450.0,119440.0,1.35075833]
[1753212388853,0.58486542,119450.0,119440.0,1.35075833]
[1753212390658,0.58486542,119450.0,119440.0,1.33821583]
[1753212391756,0.58486542,119450.0,119440.0,1.50557893]
[1753212392559,0.41751632,119450.0,119440.0,1.50557893]
[1753212392757,0.39203632,119450.0,119440.0,1.50557893]
[1753212393060,0.251219,119460.0,119440.0,1.48763108]
[1753212393261,0.251219,119460.0,119450.0,0.74848983]
[1753212393562,0.5821869,119460.0,119450.0,0.68867073]
[1753212393754,0.58224702,119460.0,119450.0,0.68867073]
[1753212393955,0.60549702,119460.0,119450.0,0.83219948]
[1753212394254,0.61974702,119460.0,119450.0,0.8447426]
[1753212394457,0.82008702,119460.0,119450.0,0.8447426]
[1753212395159,0.82408702,119460.0,119450.0,0.8447426]
[1753212396159,0.82608702,119460.0,119450.0,0.8457426]
[1753212396561,0.82608702,119460.0,119450.0,0.43151187]
[1753212396754,0.82608702,119460.0,119450.0,0.8457426]
[1753212397162,0.82608702,119460.0,119450.0,1.1412426]
[1753212397462,0.90923702,119460.0,119450.0,1.1412426]
[1753212398462,0.90923702,119460.0,119450.0,1.14124387]
[1753212399762,0.90923702,119460.0,119450.0,0.72701314]
[1753212399961,0.90923702,119460.0,119450.0,0.66720142]
[1753212400257,0.90923702,119460.0,119450.0,0.37170142]
[1753212400756,0.90923702,119460.0,119450.0,0.29144142]
[1753212400963,0.90923702,119460.0,119450.0,0.09726142]
[1753212401154,0.90923702,119460.0,119450.0,0.15707314]
[1753212401360,0.90863702,119460.0,119450.0,0.14452875]
[1753212402159,0.90862775,119460.0,119450.0,0.14452875]
[1753212402466,1.32290775,119460.0,119450.0,0.08471703]
[1753212403558,1.32290775,119460.0,119450.0,0.12959331]
[1753212405059,0.90867702,119460.0,119450.0,0.12959331]
[1753212405259,1.32290775,119460.0,119450.0,0.12959331]
[1753212405564,0.90867702,119460.0,119450.0,0.24834331]
[1753212405764,0.90867702,119460.0,119450.0,0.12959331]
[1753212406161,0.90867702,119460.0,119450.0,0.20346703]
[1753212406660,0.90867702,119460.0,119450.0,0.24840309]
[1753212407265,0.90867702,119460.0,119450.0,0.20346703]
[1753212407659,0.49439702,119460.0,119450.0,0.20346703]
[1753212407854,1.30455702,119460.0,119450.0,0.27984703]
[1753212408054,1.71927702,119460.0,119450.0,0.84503526]
[1753212408260,1.71927702,119460.0,119450.0,0.43080453]
[1753212408461,1.71927702,119460.0,119450.0,0.83247948]
[1753212408958,1.71927702,119460.0,119450.0,0.84503392]
[1753212410054,1.71927702,119460.0,119450.0,0.83247948]
[1753212410663,1.30455702,119460.0,119450.0,0.83247948]
[1753212410860,1.71955702,119460.0,119450.0,0.84503714]
[1753212411364,0.90939702,119460.0,119450.0,0.84503714]
[1753212411560,0.90939702,119460.0,119450.0,0.43080641]
[1753212412163,0.90939702,119460.0,119450.0,0.43080856]
[1753212412467,0.90939702,119460.0,119450.0,0.41824875]
[1753212414169,0.90939702,119460.0,119450.0,0.35843703]
[1753212414566,0.90939702,119460.0,119450.0,0.41843553]
[1753212415368,0.90939702,119460.0,119450.0,0.37100007]
[1753212416068,0.90939702,119460.0,119450.0,0.35843703]
[1753212416269,0.90939702,119460.0,119450.0,0.37100068]
[1753212416664,0.90939702,119460.0,119450.0,0.78523141]
[1753212416966,0.00806012,119460.0,119450.0,1.59422538]
[1753212417166,0.41448,119470.0,119460.0,0.167335]
[1753212417371,0.41448,119470.0,119460.0,0.63952304]
[1753212417568,0.41448,119470.0,119460.0,0.71445066]
[1753212417759,0.41448,119470.0,119460.0,0.91690718]
[1753212417964,0.41448,119470.0,119460.0,0.96517718]
[1753212418562,0.1899724,119480.0,119460.0,1.15946017]
[1753212418768,0.1899724,119480.0,119470.0,0.45962833]
[1753212418967,0.6043324,119480.0,119470.0,0.63920804]
[1753212419168,0.6043324,119480.0,119470.0,0.63972448]
[1753212419367,0.6043324,119480.0,119470.0,0.723431]
[1753212419771,0.6162924,119480.0,119470.0,0.723431]
[1753212419972,0.6657024,119480.0,119470.0,0.724431]
[1753212420173,0.9035424,119480.0,119470.0,0.37150267]
[1753212420473,0.9035424,119480.0,119470.0,0.77131606]
[1753212421172,0.9065424,119480.0,119470.0,0.41938773]
[1753212421673,0.9063424,119480.0,119470.0,0.41938773]
[1753212422072,0.9063424,119480.0,119470.0,0.83310039]
[1753212422372,0.9062224,119480.0,119470.0,0.83310039]
[1753212423074,0.9062224,119480.0,119470.0,0.84617714]
[1753212424175,0.9062224,119480.0,119470.0,0.84617667]
[1753212424673,0.9062224,119480.0,119470.0,0.84617663]
[1753212427977,0.9062224,119480.0,119470.0,0.86114304]
[1753212428770,0.006,119480.0,119470.0,1.32396414]
[1753212428976,0.41936,119480.0,119470.0,1.41643652]
[1753212429275,0.41936,119480.0,119470.0,1.49136414]
[1753212429668,0.006,119480.0,119470.0,1.49136414]
[1753212429873,0.41944,119480.0,119470.0,1.32410714]
[1753212430273,0.41944,119480.0,119470.0,1.49142824]
[1753212431170,0.41944,119480.0,119470.0,1.32410714]
[1753212431573,0.41944,119480.0,119470.0,1.49142824]
[1753212431875,0.006,119480.0,119470.0,1.49142824]
[1753212432063,0.41936,119480.0,119470.0,1.49142824]
[1753212433070,0.006,119480.0,119470.0,1.478352]
[1753212433268,0.1918973,119490.0,119470.0,1.5332556]
[1753212433574,0.6050173,119490.0,119480.0,0.74330925]
[1753212433775,0.6050173,119490.0,119480.0,0.68353266]
[1753212433969,0.6050173,119490.0,119480.0,0.69660671]
[1753212434276,0.6050173,119490.0,119480.0,0.84008145]
[1753212434478,0.6050173,119490.0,119480.0,0.78030622]
[1753212434883,0.6050173,119490.0,119480.0,0.84006901]
[1753212435076,0.6080173,119490.0,119480.0,0.84106901]
[1753212435277,0.6684073,119490.0,119480.0,0.84106901]
[1753212435677,0.8236173,119490.0,119480.0,0.84106901]
[1753212435884,0.8236173,119490.0,119480.0,0.78130622]
[1753212436075,0.8233773,119490.0,119480.0,0.84106396]
[1753212436281,0.8253773,119490.0,119480.0,0.84106396]
[1753212437177,0.4124973,119490.0,119480.0,0.84106396]
[1753212437373,0.658194,119490.0,119480.0,0.89957519]
[1753212437575,0.01162,119490.0,119480.0,0.94515519]
[1753212437779,0.2509084,119510.0,119490.0,0.30667]
[1753212438077,0.3735484,119510.0,119500.0,0.72038266]
[1753212438281,0.04442,119510.0,119500.0,1.07374187]
[1753212438480,0.01162,119510.0,119500.0,1.02895671]
[1753212438782,0.4243,119510.0,119500.0,1.08868452]
[1753212438978,0.41568,119510.0,119500.0,1.58607568]
[1753212439185,0.003,119510.0,119500.0,1.58607568]
[1753212439379,0.6044115,119520.0,119510.0,0.11639]
[1753212439579,0.6160315,119520.0,119510.0,0.73345443]
[1753212439884,0.03622,119520.0,119510.0,0.73345443]
[1753212440184,0.55310521,119540.0,119530.0,0.1447]
[1753212440378,0.96562521,119540.0,119530.0,0.72914269]
[1753212440684,0.96562521,119540.0,119530.0,0.31543003]
[1753212440880,0.55310521,119540.0,119530.0,0.73656019]
[1753212441074,0.55310521,119540.0,119530.0,0.81280019]
[1753212441075,0.96550521,119540.0,119530.0,0.81280019]
[1753212442078,0.99010521,119540.0,119530.0,0.81280019]
[1753212442577,0.99010521,119540.0,119530.0,0.82587082]
[1753212442578,0.99210521,119540.0,119530.0,0.82587082]
[1753212443490,0.90844923,119540.0,119530.0,0.82587082]
[1753212444684,0.91044923,119540.0,119530.0,0.82587082]
[1753212444885,0.91044923,119540.0,119530.0,0.81280019]
[1753212445188,0.7816923,119540.0,119530.0,0.81280019]
[1753212445389,0.8776523,119540.0,119530.0,0.81280019]
[1753212445580,0.8756523,119540.0,119530.0,0.73656019]
[1753212445781,0.8756523,119540.0,119530.0,0.29920753]
[1753212446886,0.8736523,119540.0,119530.0,0.32384753]
[1753212447288,0.8736523,119540.0,119530.0,0.40008753]
[1753212448179,0.8736523,119540.0,119530.0,0.81380019]
[1753212450589,0.8736523,119540.0,119530.0,0.82687051]
[1753212450888,0.8314435,119540.0,119530.0,0.82687051]
[1753212451084,0.00619078,119540.0,119530.0,0.81380019]
[1753212451281,1.0845534,119570.0,119560.0,0.01221]
[1753212451481,1.4551562,119570.0,119560.0,0.65920542]
[1753212451688,1.4312262,119570.0,119560.0,0.65920542]
[1753212451883,1.0188262,119570.0,119560.0,0.74284193]
[1753212452087,1.4312662,119570.0,119560.0,0.74284193]
[1753212452478,1.4342662,119570.0,119560.0,0.74284193]
[1753212452678,1.0218262,119570.0,119560.0,1.09537735]
[1753212452883,1.4342662,119570.0,119560.0,0.75590875]
[1753212453282,1.4382662,119570.0,119560.0,0.88521884]
[1753212454988,1.4382662,119570.0,119560.0,0.88521828]
[1753212455190,1.0258262,119570.0,119560.0,0.88521828]
[1753212455392,1.4380662,119570.0,119560.0,0.88521828]
[1753212456289,0.5864307,119570.0,119560.0,0.92993664]
[1753212456490,0.5027844,119570.0,119560.0,0.92993664]
[1753212456689,0.58233,119570.0,119560.0,0.92893664]
[1753212456894,0.58333,119570.0,119560.0,0.92893664]
[1753212457094,0.58333,119570.0,119560.0,0.88421828]
[1753212457490,0.6187219,119570.0,119560.0,0.88421828]
[1753212457687,0.6197219,119570.0,119560.0,0.88421828]
[1753212460189,0.6191619,119570.0,119560.0,0.88421828]
[1753212460392,0.6430919,119570.0,119560.0,0.47121995]
[1753212460600,0.6430919,119570.0,119560.0,0.45815369]
[1753212460792,0.6430919,119570.0,119560.0,0.47098594]
[1753212462386,0.6430919,119570.0,119560.0,0.88398427]
[1753212462387,0.9730919,119570.0,119560.0,0.88398427]
[1753212462593,0.9730919,119570.0,119560.0,0.35092594]
[1753212463293,1.108448,119570.0,119560.0,0.32628594]
[1753212463896,1.108448,119570.0,119560.0,0.35067594]
[1753212464496,1.108448,119570.0,119560.0,0.33784369]
[1753212465102,1.108448,119570.0,119560.0,0.35034211]
[1753212465299,1.108288,119570.0,119560.0,0.88941044]
[1753212465500,1.108288,119570.0,119560.0,0.34895211]
[1753212467499,0.696768,119570.0,119560.0,0.76195044]
[1753212467703,1.107928,119570.0,119560.0,0.88802044]
[1753212467905,0.672838,119570.0,119560.0,0.9327388]
[1753212468202,1.083918,119570.0,119560.0,0.9327388]
[1753212468402,1.083918,119570.0,119560.0,0.93275497]
[1753212469709,1.083918,119570.0,119560.0,0.92024038]
[1753212470006,0.672838,119570.0,119560.0,0.93275951]
[1753212470209,1.083998,119570.0,119560.0,0.93275951]
[1753212472807,1.083998,119570.0,119560.0,0.9327648]
[1753212474202,1.045708,119570.0,119560.0,0.9327648]
[1753212474404,0.634548,119570.0,119560.0,0.9327648]
[1753212474606,1.045348,119570.0,119560.0,0.9327648]
[1753212474800,1.045348,119570.0,119560.0,0.88804644]
[1753212475005,1.045348,119570.0,119560.0,0.93277942]
[1753212475201,1.045348,119570.0,119560.0,1.17989817]
[1753212475411,1.045348,119570.0,119560.0,1.22464037]
[1753212475610,1.045348,119570.0,119560.0,0.87221534]
[1753212475802,1.045348,119570.0,119560.0,0.82747581]
[1753212477008,1.045348,119570.0,119560.0,1.12297581]
[1753212477209,1.045348,119570.0,119560.0,1.47540084]
[1753212478196,1.045348,119570.0,119560.0,1.12297581]
[1753212478399,1.044348,119570.0,119560.0,1.12297581]
[1753212478598,1.044348,119570.0,119560.0,1.47541306]
[1753212478800,1.044348,119570.0,119560.0,1.47541303]
[1753212479203,1.044348,119570.0,119560.0,1.53514084]
[1753212479899,1.043348,119570.0,119560.0,1.53514084]
[1753212480312,1.0433368,119570.0,119560.0,1.47541303]
[1753212480706,0.8761561,119570.0,119560.0,1.47541303]
[1753212481112,1.0433376,119570.0,119560.0,1.47541303]
[1753212481312,1.0433376,119570.0,119560.0,1.55034065]
[1753212481710,0.8761561,119570.0,119560.0,1.55034065]
[1753212481906,0.82503287,119570.0,119560.0,1.55034065]
[1753212482414,0.99221357,119570.0,119560.0,1.56134065]
[1753212482615,0.99321357,119570.0,119560.0,1.56134065]
[1753212483814,0.99321357,119570.0,119560.0,1.56147532]
[1753212485515,0.99421357,119570.0,119560.0,1.56947532]
[1753212486514,0.99421357,119570.0,119560.0,0.86462526]
[1753212486724,0.99421357,119570.0,119560.0,1.56947532]
[1753212486908,0.99421357,119570.0,119560.0,1.56905174]
[1753212487610,0.99421357,119570.0,119560.0,1.56905111]
[1753212490315,0.7624092,119570.0,119560.0,1.73624581]
[1753212490512,0.7624092,119570.0,119560.0,1.56905111]
[1753212490820,0.6020496,119600.0,119590.0,0.31884]
[1753212491011,1.0151696,119600.0,119590.0,0.68351477]
[1753212491414,1.0151696,119600.0,119590.0,0.39052625]
[1753212491616,1.0151696,119600.0,119590.0,0.76715128]
[1753212491919,0.6020496,119600.0,119590.0,0.76715128]
[1753212492112,1.0191696,119600.0,119590.0,0.76715128]
[1753212492918,1.0181696,119600.0,119590.0,0.16580714]
[1753212493118,1.0151696,119600.0,119590.0,0.15434714]
[1753212493621,1.0151696,119600.0,119590.0,0.50677217]
[1753212494325,1.0151696,119600.0,119590.0,0.15434714]
[1753212494623,1.0151696,119600.0,119590.0,0.1420974]
[1753212494920,1.0151696,119600.0,119590.0,0.49452243]
[1753212495618,0.95447463,119600.0,119590.0,0.02806815]
[1753212495818,0.4493807,119570.0,119560.0,0.12761536]
[1753212496119,0.4493807,119570.0,119560.0,0.12760819]
[1753212496120,1.21784573,119570.0,119560.0,0.12760819]
[1753212496418,0.1671947,119560.0,119550.0,9.051e-05]
[1753212496612,0.1672087,119550.0,119540.0,0.07471965]
[1753212496812,1.13648373,119550.0,119540.0,0.07471965]
[1753212497012,0.7840587,119550.0,119540.0,0.15836316]
[1753212497420,0.7840587,119550.0,119540.0,0.08364351]
[1753212497622,1.13648373,119550.0,119540.0,0.08364351]
[1753212497819,1.13657369,119550.0,119540.0,0.08364351]
[1753212498911,0.3127767,119530.0,119520.0,0.12368209]
[1753212499115,0.7289367,119530.0,119520.0,0.06825316]
[1753212499422,0.7289367,119530.0,119520.0,0.15190366]
[1753212499819,0.7289367,119530.0,119520.0,0.20077366]
[1753212500016,0.7309367,119530.0,119520.0,0.22477366]
[1753212500221,0.7309367,119530.0,119520.0,0.34779366]
[1753212500520,0.7309367,119530.0,119520.0,0.38064412]
[1753212501321,0.7329367,119530.0,119520.0,0.39764412]
[1753212502719,0.7329367,119530.0,119520.0,0.43927412]
[1753212504108,0.7329367,119530.0,119520.0,0.40910412]
[1753212506822,0.3167767,119530.0,119520.0,0.40910412]
[1753212507015,0.7320567,119530.0,119520.0,0.52039412]
[1753212508916,0.7320567,119530.0,119520.0,0.43927412]
[1753212509122,0.7320567,119530.0,119520.0,0.39764412]
[1753212511522,0.7312567,119530.0,119520.0,0.40910412]
[1753212511916,0.3167767,119530.0,119520.0,0.40910412]
[1753212512117,0.7310967,119530.0,119520.0,0.40910412]
[1753212513426,0.7310967,119530.0,119520.0,0.43927412]
[1753212513727,0.7310967,119530.0,119520.0,0.52039412]
[1753212514118,0.3167767,119530.0,119520.0,0.52039412]
[1753212514325,0.7308567,119530.0,119520.0,0.93387103]
[1753212514823,0.1712367,119530.0,119520.0,0.93387103]
[1753212515030,0.414,119530.0,119520.0,0.99344753]
[1753212515426,1.0188811,119540.0,119530.0,0.29464]
[1753212515726,0.2090411,119540.0,119530.0,0.79189341]
[1753212515924,0.0417962,119570.0,119550.0,0.12275]
[1753212516122,0.2508097,119560.0,119550.0,0.36345963]
[1753212516321,0.6647297,119560.0,119550.0,0.77693654]
[1753212516622,0.6647297,119560.0,119550.0,0.86059404]
[1753212516927,0.7195597,119560.0,119550.0,0.86059404]
[1753212517826,0.7195597,119560.0,119550.0,0.86159404]
[1753212518728,0.7205597,119560.0,119550.0,0.87459404]
[1753212518932,0.7548297,119560.0,119550.0,0.46111713]
[1753212519227,0.7558297,119560.0,119550.0,0.47011713]
[1753212522426,0.7558297,119560.0,119550.0,0.38899713]
[1753212523030,0.7558297,119560.0,119550.0,0.34736713]
[1753212530032,0.7551497,119560.0,119550.0,0.81985591]
[1753212530227,0.7208797,119560.0,119550.0,0.81985591]
[1753212530629,0.3076397,119560.0,119550.0,0.77523628]
[1753212530837,0.6658897,119560.0,119550.0,0.83481278]
[1753212531728,0.0417919,119580.0,119550.0,1.65014116]
[1753212531928,0.84395,119590.0,119580.0,0.30816]
[1753212531929,1.0316636,119590.0,119580.0,0.30816]
[1753212532236,1.4446636,119590.0,119580.0,0.70553318]
[1753212532427,1.4789336,119590.0,119580.0,0.78917669]
[1753212533234,1.0659336,119590.0,119580.0,0.43655791]
[1753212533531,1.4788936,119590.0,119580.0,0.4453181]
[1753212534138,1.4798936,119590.0,119580.0,0.1398237]
[1753212534435,1.89287357,119590.0,119580.0,0.0924037]
[1753212535329,1.89187357,119590.0,119580.0,0.0934037]
[1753212536434,1.89187357,119590.0,119580.0,0.16142862]
[1753212543041,1.4788936,119590.0,119580.0,0.16142862]
[1753212543235,1.89187357,119590.0,119580.0,0.16142862]
[1753212543438,1.4788936,119590.0,119580.0,0.16142862]
[1753212543738,1.4788936,119590.0,119580.0,0.20884862]
[1753212543941,1.4788936,119590.0,119580.0,0.32702862]
[1753212546340,1.4788936,119590.0,119580.0,0.34971862]
[1753212551250,1.89187357,119590.0,119580.0,0.32702862]
[1753212553252,1.83138384,119590.0,119580.0,0.32702862]
[1753212554250,0.60874384,119590.0,119580.0,0.35188862]
[1753212554446,1.01998384,119590.0,119580.0,0.35188862]
[1753212555146,0.6332236,119590.0,119580.0,0.47906862]
[1753212555340,0.6332236,119590.0,119580.0,0.87631326]
[1753212555746,0.6332236,119590.0,119580.0,0.83155886]
[1753212558054,0.6332236,119590.0,119580.0,0.47906862]
[1753212558257,0.6332236,119590.0,119580.0,0.83155886]
[1753212558755,0.6332236,119590.0,119580.0,0.47906862]
[1753212559053,0.6332236,119590.0,119580.0,0.83155886]
[1753212559643,0.6332236,119590.0,119580.0,0.47906862]
[1753212559847,0.6332236,119590.0,119580.0,0.83155886]
[1753212561648,1.01998384,119590.0,119580.0,0.39576862]
[1753212562255,1.01998384,119590.0,119580.0,0.4406487]
[1753212564660,1.01998384,119590.0,119580.0,0.3719087]
[1753212565361,1.01998384,119590.0,119580.0,0.3967687]
[1753212567364,1.01998384,119590.0,119580.0,0.4286887]
[1753212568964,1.01998384,119590.0,119580.0,0.5239487]
[1753212572662,0.2219836,119590.0,119580.0,0.47906862]
[1753212572866,0.6349436,119590.0,119580.0,0.53864512]
[1753212573061,0.6349436,119590.0,119580.0,0.89113536]
[1753212573465,0.2219836,119590.0,119580.0,0.89113536]
[1753212573666,0.6349436,119590.0,119580.0,0.89113536]
[1753212573863,0.6349436,119590.0,119580.0,0.83155886]
[1753212574161,0.5804736,119590.0,119580.0,0.83155886]
[1753212574861,0.0002,119600.0,119590.0,0.02486]
[1753212575062,0.0417796,119620.0,119610.0,0.14319]
[1753212575063,0.1671133,119620.0,119610.0,0.14319]
[1753212575264,0.2506512,119630.0,119620.0,0.31969]
[1753212575460,0.68146967,119630.0,119620.0,0.67218024]
[1753212575865,0.43081847,119630.0,119620.0,0.75580276]
[1753212576064,0.43073847,119630.0,119620.0,0.75580276]
[1753212576269,0.5803778,119630.0,119620.0,0.75580276]
[1753212576462,0.1670978,119630.0,119620.0,0.75580276]
[1753212576766,0.5804178,119630.0,119620.0,0.75580276]
[1753212577167,2.0804178,119630.0,119620.0,0.75580276]
[1753212577760,2.0824178,119630.0,119620.0,0.75580276]
[1753212581065,0.004,119630.0,119620.0,1.2754047]
[1753212581366,0.2506375,119640.0,119630.0,0.31848]
[1753212581670,0.6235447,119640.0,119630.0,1.06813515]
[1753212581866,0.6235447,119640.0,119630.0,0.79923947]
[1753212582061,0.6783747,119640.0,119630.0,0.44674923]
[1753212582268,0.6783747,119640.0,119630.0,0.79920208]
[1753212582663,0.6803747,119640.0,119630.0,0.79920208]
[1753212584778,0.6803747,119640.0,119630.0,0.7545648]
[1753212585668,0.6803747,119640.0,119630.0,0.8289287]
[1753212586071,0.6803747,119640.0,119630.0,0.79920208]
[1753212586370,0.6386019,119640.0,119630.0,0.79920208]
[1753212586675,0.56036749,119650.0,119630.0,1.27415334]
[1753212586870,0.61636005,119650.0,119640.0,1.06801977]
[1753212587071,2.11636005,119650.0,119640.0,1.06801977]
[1753212587579,2.11636005,119650.0,119640.0,1.15160385]
[1753212588074,2.11936005,119650.0,119640.0,1.15160385]
[1753212588477,2.12136005,119650.0,119640.0,1.15160385]
[1753212589673,0.005,119650.0,119640.0,1.31868815]
[1753212589872,0.005,119650.0,119640.0,1.27412886]
[1753212589873,0.41664,119650.0,119640.0,1.27412886]
[1753212590172,0.41864,119650.0,119640.0,1.31860535]
[1753212590576,0.41864,119650.0,119640.0,1.21695371]
[1753212590872,0.41664,119650.0,119640.0,1.21895371]
[1753212591273,0.41364,119650.0,119640.0,1.22295371]
[1753212591777,0.41364,119650.0,119640.0,1.17847722]
[1753212592075,0.5807104,119650.0,119640.0,1.23805372]
[1753212592478,0.41364,119650.0,119640.0,1.23805372]
[1753212593272,0.622152,119660.0,119640.0,1.98541802]
[1753212593476,0.622152,119660.0,119650.0,0.71539563]
[1753212593775,0.208832,119660.0,119650.0,0.71539563]
[1753212593974,0.621912,119660.0,119650.0,0.79897622]
[1753212594275,0.5801479,119660.0,119650.0,0.79897622]
[1753212594876,0.5801479,119660.0,119650.0,0.81203265]
[1753212595178,0.5801479,119660.0,119650.0,0.81403265]
[1753212595784,0.1670679,119660.0,119650.0,0.81403265]
[1753212596572,0.1670679,119660.0,119650.0,0.81503265]
[1753212597576,0.6218545,119670.0,119660.0,0.31848]
[1753212597776,0.6216545,119670.0,119660.0,0.71362954]
[1753212597977,2.1216545,119670.0,119660.0,0.71362954]
[1753212598274,1.7088145,119670.0,119660.0,0.84162155]
[1753212598474,2.1214145,119670.0,119660.0,0.79719616]
[1753212599074,2.1214145,119670.0,119660.0,0.79819616]
[1753212599274,0.1670423,119670.0,119660.0,1.21075616]
[1753212599577,0.6343123,119670.0,119660.0,0.79819616]
[1753212600970,0.6343123,119670.0,119660.0,0.44570592]
[1753212600971,0.6342323,119670.0,119660.0,0.44570592]